bitfinex/quotes_SOLUSD_20240712
["timestamp","ask_amount","ask_price","bid_price","bid_amount"]
[1720766494327,0.3446084,137.29,137.24,59.39]
[1720766494523,14.7346084,137.29,137.24,59.39]
[1720766495632,14.7346084,137.29,137.25,14.39]
[1720766495841,14.7346084,137.29,137.26,45.0]
[1720766496227,14.7346084,137.29,137.25,45.0]
[1720766496625,14.7346084,137.29,137.21,15.182]
[1720766496826,14.7346084,137.29,137.24,14.39]
[1720766497026,14.7346084,137.29,137.25,45.0]
[1720766497452,14.7346084,137.29,137.25,59.39]
[1720766499753,0.3446084,137.29,137.25,59.39]
[1720766499934,0.3446084,137.29,137.26,14.39]
[1720766500136,0.3446084,137.29,137.27,45.0]
[1720766503434,0.3446084,137.29,137.27,59.39]
[1720766508766,0.3446084,137.29,137.28,14.39]
[1720766509054,0.3446084,137.29,137.28,59.39]
[1720766509646,0.3446084,137.29,137.28,79.39]
[1720766510546,0.3446084,137.29,137.28,65.0]
[1720766510855,14.7346084,137.29,137.23,6.1179]
[1720766511057,14.7346084,137.29,137.25,14.39]
[1720766511640,14.7346084,137.29,137.22,16.5537]
[1720766511840,14.7346084,137.29,137.24,14.39]
[1720766512045,0.3446084,137.29,137.25,45.0]
[1720766512243,0.3446084,137.29,137.25,59.39]
[1720766512445,14.7346084,137.29,137.25,59.39]
[1720766512653,14.7346084,137.29,137.25,45.0]
[1720766512863,14.7346084,137.29,137.25,59.39]
[1720766513657,14.7346084,137.29,137.25,45.0]
[1720766514943,14.39,137.28,137.25,45.0]
[1720766515144,0.3446084,137.29,137.25,45.0]
[1720766515450,14.39,137.28,137.25,45.0]
[1720766515655,14.7346084,137.29,137.25,45.0]
[1720766517234,0.3446084,137.29,137.26,14.39]
[1720766517547,14.7346084,137.29,137.25,45.0]
[1720766517862,14.7346084,137.29,137.25,59.39]
[1720766517863,0.3446084,137.29,137.25,59.39]
[1720766518641,14.7346084,137.29,137.25,45.0]
[1720766519155,14.7346084,137.29,137.26,1.45624919]
[1720766522040,14.7346084,137.29,137.25,45.0]
[1720766524363,0.3446084,137.29,137.25,45.0]
[1720766524580,14.7346084,137.29,137.25,45.0]
[1720766525661,14.39,137.28,137.23,14.39]
[1720766525863,14.39,137.28,137.24,65.0]
[1720766526974,14.39,137.28,137.24,79.39]
[1720766528886,14.39,137.27,137.2,6.3336]
[1720766529078,14.39,137.27,137.22,14.39]
[1720766529269,14.39,137.27,137.23,65.0]
[1720766529586,14.39,137.27,137.23,20.0]
[1720766530489,14.39,137.27,137.19,18.07446589]
[1720766530490,14.39,137.26,137.19,15.1174]
[1720766530696,14.39,137.26,137.03,36.62411197]
[1720766530697,20.5401,137.27,137.16,16.6351]
[1720766530887,20.5401,137.27,137.15,2.88586156]
[1720766530888,16.2729,137.25,137.15,2.88586156]
[1720766531062,14.39,137.21,137.13,16.6351]
[1720766531368,6.1501,137.22,137.14,14.39]
[1720766531569,14.39,137.18,137.14,14.39]
[1720766532785,14.39,137.2,137.15,14.39]
[1720766532993,14.39,137.2,137.16,45.0]
[1720766533364,6.1501,137.22,137.16,45.0]
[1720766533365,14.39,137.19,137.16,45.0]
[1720766533572,14.39,137.19,137.15,45.0]
[1720766533964,14.39,137.19,137.14,59.39]
[1720766534166,14.39,137.19,137.15,20.0]
[1720766534388,14.39,137.19,137.16,45.0]
[1720766535180,14.39,137.19,137.15,20.0]
[1720766535379,14.39,137.18,137.1,6.5674]
[1720766535581,14.39,137.17,137.13,14.39]
[1720766535967,14.39,137.17,137.12,14.39]
[1720766536979,14.39,137.17,137.13,45.0]
[1720766537499,14.39,137.16,137.13,45.0]
[1720766537785,14.39,137.16,137.11,14.39]
[1720766538990,14.39,137.16,137.09,16.2625]
[1720766538991,14.39,137.15,137.09,16.2625]
[1720766539189,14.39,137.15,137.1,59.39]
[1720766539494,14.39,137.14,137.09,16.2625]
[1720766539695,14.39,137.14,137.09,30.6525]
[1720766540476,15.8715,137.19,137.1,14.39]
[1720766540683,14.39,137.15,137.1,14.39]
[1720766541486,14.39,137.14,137.07,6.0864]
[1720766541795,6.1413,137.16,137.05,52.33469235]
[1720766541796,14.39,137.12,137.05,16.4782]
[1720766541974,14.39,137.12,137.07,14.39]
[1720766543088,6.1413,137.16,137.1,14.39]
[1720766543277,14.39,137.14,137.1,14.39]
[1720766543478,14.39,137.14,137.08,20.0]
[1720766543687,14.39,137.14,137.09,45.0]
[1720766543982,14.39,137.14,137.09,14.39]
[1720766544195,14.39,137.14,137.1,45.0]
[1720766544395,14.39,137.14,137.07,20.0]
[1720766544693,14.39,137.14,137.09,14.39]
[1720766545203,14.39,137.14,137.1,14.39]
[1720766545391,14.39,137.15,137.1,14.39]
[1720766546478,6.1413,137.16,137.11,14.39]
[1720766546688,20.5313,137.16,137.11,59.39]
[1720766546871,20.5313,137.16,137.11,14.39]
[1720766548080,14.39,137.16,137.11,14.39]
[1720766548281,14.39,137.17,137.12,59.39]
[1720766548482,14.39,137.16,137.08,51.0113]
[1720766548693,14.39,137.15,137.09,20.0]
[1720766548991,15.8715,137.19,137.1,45.0]
[1720766548992,14.39,137.14,137.1,45.0]
[1720766549302,14.39,137.15,137.1,59.39]
[1720766549803,14.39,137.15,137.1,45.0]
[1720766550003,14.39,137.14,137.1,45.0]
[1720766550392,14.39,137.13,137.1,45.0]
[1720766551112,14.39,137.14,137.1,45.0]
[1720766551310,14.39,137.13,137.09,20.0]
[1720766551500,14.39,137.11,137.06,14.39]
[1720766552712,14.39,137.11,137.07,14.39]
[1720766553791,14.39,137.1,137.05,16.4782]
[1720766554113,14.39,137.09,137.06,45.0]
[1720766554311,14.39,137.09,137.04,14.39]
[1720766555586,14.39,137.09,137.05,20.0]
[1720766556084,14.39,137.09,137.06,45.0]
[1720766556507,14.39,137.09,137.05,20.0]
[1720766556508,14.39,137.09,137.05,34.39]
[1720766557224,14.39,137.12,137.07,14.39]
[1720766557507,16.0363,137.14,137.06,45.0]
[1720766557508,14.39,137.13,137.06,45.0]
[1720766557715,14.39,137.13,137.08,14.39]
[1720766558312,16.0363,137.14,137.09,59.39]
[1720766558484,30.4263,137.14,137.09,14.39]
[1720766558690,6.4863,137.15,137.1,45.0]
[1720766559009,16.0175,137.17,137.12,14.39]
[1720766559312,16.0175,137.17,137.13,14.39]
[1720766559488,30.4075,137.17,137.13,14.39]
[1720766559690,14.39,137.18,137.13,14.39]
[1720766559889,14.39,137.18,137.12,1.45766184]
[1720766560111,14.39,137.17,137.12,60.84766184]
[1720766560290,14.39,137.17,137.13,20.0]
[1720766560497,14.39,137.17,137.14,1.45818198]
[1720766560689,14.39,137.18,137.14,1.45818198]
[1720766561022,14.39,137.17,137.14,1.45818198]
[1720766562035,22.1944,137.2,137.14,1.45818198]
[1720766562315,14.39,137.17,137.14,1.45818198]
[1720766562529,14.39,137.18,137.14,1.45818198]
[1720766563096,22.1944,137.2,137.13,21.458182]
[1720766563097,14.39,137.17,137.13,21.458182]
[1720766563415,14.39,137.18,137.13,35.848182]
[1720766563603,14.39,137.17,137.13,21.458182]
[1720766564706,22.1944,137.2,137.13,21.458182]
[1720766565109,14.39,137.17,137.13,21.458182]
[1720766565515,22.1944,137.2,137.14,45.0]
[1720766565733,14.39,137.18,137.15,1.45806355]
[1720766569306,14.39,137.19,137.15,15.84806355]
[1720766569619,14.39,137.21,137.16,14.39]
[1720766569800,21.4949,137.26,137.18,14.39]
[1720766570003,14.39,137.23,137.19,1.45740508]
[1720766570219,14.39,137.23,137.19,46.45740508]
[1720766571605,21.4949,137.26,137.19,46.45740508]
[1720766571810,14.39,137.23,137.19,46.45740508]
[1720766572720,14.39,137.22,137.19,46.45740508]
[1720766573117,14.39,137.22,137.15,1.45753967]
[1720766573429,14.39,137.22,137.17,14.39]
[1720766573733,14.39,137.21,137.18,46.45722091]
[1720766574026,14.39,137.21,137.13,77.56]
[1720766574027,14.39,137.2,137.14,1.45722091]
[1720766574213,14.39,137.2,137.15,15.84753965]
[1720766574410,14.39,137.19,137.13,20.0]
[1720766574710,14.39,137.19,137.14,14.39]
[1720766574915,14.39,137.19,137.15,20.0]
[1720766575128,7.2871,137.23,137.12,15.32271183]
[1720766575129,14.39,137.18,137.12,15.32271183]
[1720766575329,14.39,137.18,137.13,14.39]
[1720766576313,14.39,137.18,137.14,20.0]
[1720766576510,28.64,137.22,137.14,20.0]
[1720766576713,15.3062,137.21,137.12,15.32271183]
[1720766576913,21.4872,137.21,137.12,15.32271183]
[1720766578010,21.4872,137.21,137.13,20.0]
[1720766578430,21.4872,137.21,137.14,45.0]
[1720766579021,21.4872,137.21,137.13,20.0]
[1720766580230,50.1272,137.21,137.13,20.0]
[1720766580820,50.1272,137.21,137.12,0.08461183]
[1720766580821,57.4153,137.21,137.12,0.08461183]
[1720766581015,20.0,137.2,137.12,0.08461183]
[1720766581527,44.4831,137.19,137.12,0.08461183]
[1720766584844,44.39848817,137.19,137.07,20.0]
[1720766585136,44.39848817,137.19,137.08,45.0]
[1720766585346,20.0,137.18,137.09,20.0]
[1720766587717,20.0,137.17,137.09,20.0]
[1720766588527,20.0,137.18,137.09,20.0]
[1720766588717,20.0,137.18,137.09,20.83926353]
[1720766590035,20.0,137.18,137.09,0.83926353]
[1720766590344,28.64,137.17,137.08,45.0]
[1720766590519,20.0,137.16,137.08,45.0]
[1720766593740,6.2014,137.15,137.05,15.0208]
[1720766594044,6.2014,137.15,137.06,65.0]
[1720766595134,6.2014,137.15,137.05,15.0208]
[1720766595135,28.64,137.12,137.04,10.44669707]
[1720766595336,28.64,137.12,136.99,15.2709]
[1720766595643,20.0,137.11,136.99,15.2709]
[1720766595819,22.3844,137.1,136.99,15.2709]
[1720766597237,22.3844,137.1,137.0,20.0]
[1720766597944,22.3844,137.1,137.01,45.0]
[1720766598241,22.3844,137.1,137.02,20.0]
[1720766598631,14.34,137.07,137.03,14.34]
[1720766599326,15.7591,137.1,137.02,20.0]
[1720766599524,79.6184,137.13,137.04,14.34]
[1720766599732,14.34,137.09,137.05,14.34]
[1720766600723,79.6184,137.13,137.02,20.0]
[1720766601036,14.34,137.06,137.01,14.34]
[1720766601245,14.34,137.06,137.02,20.0]
[1720766601824,14.34,137.07,137.03,1.03881246]
[1720766602839,14.34,137.06,137.02,1.03933459]
[1720766603041,14.34,137.05,137.01,1.03933459]
[1720766603427,14.34,137.06,137.01,15.37933459]
[1720766603744,7.2941,137.1,137.01,1.03933459]
[1720766603745,14.34,137.05,137.01,1.03933459]
[1720766604244,14.34,137.05,137.01,1.45953988]
[1720766608535,14.34,137.05,136.99,15.2709]
[1720766608742,14.34,137.04,136.99,15.2709]
[1720766608932,14.34,137.03,136.99,15.2709]
[1720766609131,14.34,137.03,136.98,14.34]
[1720766609349,14.34,137.03,136.99,20.0]
[1720766609530,14.34,137.03,136.95,16.6981]
[1720766609737,14.34,137.02,136.97,14.34]
[1720766609942,14.34,137.02,136.95,16.6981]
[1720766610248,14.34,137.01,136.97,14.34]
[1720766613952,14.34,137.01,136.96,14.34]
[1720766614255,14.34,137.01,136.97,45.0]
[1720766615760,14.34,137.01,136.97,59.34]
[1720766616750,14.34,137.01,136.95,16.6981]
[1720766617053,14.34,137.01,136.96,79.34]
[1720766617256,14.34,137.01,136.97,14.34]
[1720766617551,57.36,137.06,136.97,14.34]
[1720766617552,14.34,137.02,136.97,14.34]
[1720766617853,14.34,137.01,136.97,14.34]
[1720766619351,14.34,137.02,136.97,14.34]
[1720766620633,14.34,137.01,136.96,65.0]
[1720766620844,14.34,137.01,136.97,14.34]
[1720766621267,14.34,137.01,136.95,16.6981]
[1720766621268,21.5323,137.0,136.95,0.5]
[1720766621432,14.34,136.97,136.95,0.5]
[1720766621638,14.34,136.96,136.95,0.5]
[1720766621939,14.34,136.97,136.95,0.5]
[1720766623342,14.34,136.96,136.95,0.5]
[1720766625332,14.34,136.96,136.83,21.97]
[1720766625333,20.6031,136.95,136.83,21.97]
[1720766625538,20.6031,136.95,136.87,14.34]
[1720766625539,14.34,136.91,136.87,14.34]
[1720766625764,14.34,136.92,136.87,14.34]
[1720766626147,14.34,136.91,136.83,21.97]
[1720766626347,14.34,136.91,136.87,14.34]
[1720766626745,40.6031,136.95,136.83,24.80218051]
[1720766626746,14.34,136.92,136.88,14.34]
[1720766627083,14.34,136.92,136.87,14.34]
[1720766627250,14.34,136.92,136.83,24.80218051]
[1720766627575,14.34,136.91,136.87,14.34]
[1720766627861,14.34,136.91,136.86,14.34]
[1720766628062,14.34,136.91,136.87,45.0]
[1720766629147,7.3025,136.94,136.84,20.0]
[1720766629377,40.6031,136.95,136.82,37.7702]
[1720766629682,34.0387,136.95,136.82,37.7702]
[1720766629858,14.34,136.95,136.9,14.34]
[1720766630065,22.2304,136.98,136.91,14.34]
[1720766630248,14.34,136.95,136.91,14.34]
[1720766630664,14.34,136.96,136.91,14.34]
[1720766630866,22.2304,136.98,136.92,14.34]
[1720766631065,14.34,136.97,136.92,14.34]
[1720766631266,22.2304,136.98,136.92,14.34]
[1720766631463,19.76683777,137.02,136.89,44.852]
[1720766631464,41.99723777,137.02,136.89,44.852]
[1720766631672,41.99723777,137.02,136.93,45.0]
[1720766631842,14.34,136.98,136.94,14.34]
[1720766632272,14.34,136.99,136.94,14.34]
[1720766632563,7.2991,137.01,136.93,45.0]
[1720766632877,7.2988,137.01,136.93,45.0]
[1720766633372,7.2993,137.0,136.89,22.882]
[1720766633564,27.2998,136.99,136.9,20.0]
[1720766633872,27.2998,136.99,136.91,0.85959349]
[1720766634045,20.0,136.99,136.91,0.85959349]
[1720766634240,7.2993,137.0,136.91,0.85959349]
[1720766634455,20.0,136.99,136.91,0.85959349]
[1720766634676,20.0,136.99,136.91,45.85959349]
[1720766635554,20.0,137.0,136.91,45.85959349]
[1720766636073,29.529,137.02,136.91,45.85959349]
[1720766636074,22.2304,137.02,136.91,45.85959349]
[1720766636267,28.72,137.05,136.92,20.0]
[1720766636459,28.72,137.05,136.94,15.0766]
[1720766636642,28.72,137.05,136.95,0.85937253]
[1720766636845,36.0167,137.05,136.96,0.85930978]
[1720766637159,7.2972,137.04,136.96,0.85930978]
[1720766637567,7.2972,137.04,136.96,1.41992271]
[1720766638070,36.0167,137.05,136.96,1.41992271]
[1720766638445,7.2972,137.04,136.96,1.41992271]
[1720766638968,20.0,137.03,136.96,1.41992271]
[1720766641159,20.0,137.04,136.96,1.41992271]
[1720766643287,20.0,137.04,136.95,45.0]
[1720766646085,28.72,137.05,136.95,45.0]
[1720766646259,25.44122964,137.11,136.97,15.6935]
[1720766646260,45.303,137.09,136.97,15.6935]
[1720766646580,20.0,137.08,136.98,45.0]
[1720766646982,27.295,137.08,136.98,45.0]
[1720766648461,45.303,137.09,136.99,6.113]
[1720766648664,45.303,137.09,137.0,45.0]
[1720766649094,52.5975,137.09,137.0,45.0]
[1720766649779,20.0,137.08,137.0,45.0]
[1720766650184,7.2941,137.1,137.01,15.7059]
[1720766650375,7.2941,137.1,137.02,45.0]
[1720766650563,36.0136,137.11,137.02,45.0]
[1720766650958,7.294,137.1,137.03,1.06676233]
[1720766651283,36.012,137.14,137.03,1.06676233]
[1720766651494,7.292,137.14,137.04,6.6186]
[1720766651788,57.9506,137.16,137.06,15.6637]
[1720766652091,28.72,137.18,137.07,46.06678448]
[1720766652376,28.72,137.18,137.08,1.06670688]
[1720766652582,36.0098,137.18,137.08,1.06670688]
[1720766652965,27.2902,137.17,137.08,1.06670688]
[1720766653866,7.2908,137.16,137.08,1.06670688]
[1720766654073,20.0,137.15,137.08,1.06670688]
[1720766654281,7.2903,137.17,137.08,1.06670688]
[1720766654480,7.2908,137.16,137.07,45.0]
[1720766655576,20.0,137.15,137.07,45.0]
[1720766656177,20.0,137.17,137.07,45.0]
[1720766656762,27.2906,137.17,137.07,45.0]
[1720766656957,20.0,137.17,137.07,45.0]
[1720766657156,7.2908,137.16,137.07,45.0]
[1720766657383,27.2913,137.15,137.07,45.0]
[1720766657573,36.0109,137.16,137.07,45.0]
[1720766657773,20.0,137.15,137.07,45.0]
[1720766659275,28.72,137.16,137.07,45.0]
[1720766659482,28.72,137.18,137.07,45.0]
[1720766659680,65.0,137.17,137.07,45.0]
[1720766662091,72.2902,137.17,137.07,45.0]
[1720766662293,65.0,137.17,137.07,45.0]
[1720766663309,20.0,137.17,137.08,6.5496]
[1720766663484,20.0,137.17,137.09,45.0]
[1720766663693,28.72,137.2,137.1,15.7422]
[1720766663893,28.72,137.22,137.11,45.0]
[1720766664197,7.288,137.21,137.11,45.0]
[1720766665197,20.0,137.2,137.11,45.0]
[1720766665589,20.0,137.2,137.12,1.45829935]
[1720766665792,20.0,137.2,137.11,46.45829935]
[1720766666099,28.72,137.2,137.11,1.45829935]
[1720766666291,20.0,137.19,137.11,1.45829935]
[1720766666496,27.2892,137.19,137.11,1.45829935]
[1720766666886,20.0,137.19,137.11,1.45829935]
[1720766669072,27.2892,137.19,137.11,1.45829935]
[1720766669508,27.2892,137.19,137.11,21.45829935]
[1720766669811,20.0,137.19,137.1,15.7422]
[1720766670009,27.2892,137.19,137.1,15.7422]
[1720766670793,36.0098,137.18,137.1,15.7422]
[1720766671014,20.0,137.17,137.1,15.7422]
[1720766673406,28.72,137.16,137.1,15.7422]
[1720766673580,28.72,137.14,137.1,15.7422]
[1720766673997,20.0,137.13,137.1,15.7422]
[1720766674404,7.2909,137.16,137.1,15.7422]
[1720766674585,28.72,137.14,137.1,15.7422]
[1720766674787,20.0,137.13,137.1,15.7422]
[1720766678810,20.0,137.13,137.08,6.5496]
[1720766678811,27.2927,137.13,137.08,6.5496]
[1720766679016,28.72,137.12,137.06,15.708]
[1720766679198,20.0,137.11,137.06,15.708]
[1720766680421,20.0,137.11,137.02,15.5365]
[1720766681819,27.2935,137.11,137.02,15.5365]
[1720766681990,73.72,137.1,137.02,15.5365]
[1720766682193,27.2945,137.09,137.02,15.5365]
[1720766682411,28.72,137.08,137.02,15.5365]
[1720766682611,20.0,137.07,137.02,15.5365]
[1720766684422,36.0151,137.08,137.02,15.5365]
[1720766684599,65.0,137.07,137.02,15.5365]
[1720766685624,20.0,137.06,137.02,15.5365]
[1720766686205,48.72,137.06,137.0,6.1982]
[1720766686406,56.0161,137.06,137.0,6.1982]
[1720766686609,48.72,137.06,137.0,6.1982]
[1720766688108,48.72,137.06,136.93,22.0928]
[1720766688109,28.72,137.04,136.93,22.0928]
[1720766688316,28.72,137.02,136.93,22.0928]
[1720766688515,20.0,137.01,136.93,22.0928]
[1720766689422,28.72,137.02,136.93,22.0928]
[1720766689629,20.0,137.01,136.93,22.0928]
[1720766691000,20.0,137.01,136.94,45.0]
[1720766692411,20.0,137.01,136.93,22.0928]
[1720766693431,20.0,137.0,136.93,22.0928]
[1720766693736,48.72,137.0,136.93,22.0928]
[1720766694314,28.72,137.0,136.93,22.0928]
[1720766699634,28.72,137.02,136.93,22.0928]
[1720766699825,65.0,137.01,136.93,22.0928]
[1720766700131,65.0,137.01,136.9,16.4036]
[1720766700132,35.223,137.0,136.9,16.4036]
[1720766700310,42.5227,137.0,136.9,16.4036]
[1720766700515,14.37,136.93,136.9,16.4036]
[1720766701417,14.37,136.92,136.9,16.4036]
[1720766702640,7.3004,136.98,136.9,16.4036]
[1720766702641,28.75,136.97,136.9,16.4036]
[1720766702815,65.0,136.96,136.9,16.4036]
[1720766703227,20.0,136.96,136.9,16.4036]
[1720766703830,20.0,136.96,136.9,17.86185789]
[1720766704339,48.75,136.99,136.9,17.86185789]
[1720766704546,45.0,136.98,136.9,17.86185789]
[1720766704929,20.0,136.97,136.9,17.86185789]
[1720766705631,20.0,136.98,136.9,17.86185789]
[1720766706840,27.3003,136.98,136.9,17.86185789]
[1720766707020,27.3003,136.98,136.9,16.4036]
[1720766707830,20.0,136.98,136.9,16.4036]
[1720766710028,27.3003,136.98,136.9,16.4036]
[1720766711933,36.0508,136.97,136.9,16.4036]
[1720766712332,20.0,136.96,136.9,16.4036]
[1720766720446,20.0,136.96,136.86,16.0941]
[1720766720654,20.0,136.96,136.87,45.0]
[1720766722649,14.37,136.92,136.87,59.37]
[1720766722979,19.78922019,137.06,136.96,21.7808]
[1720766723129,14.37,137.05,137.01,14.37]
[1720766723330,14.37,137.05,137.0,14.37]
[1720766723657,14.37,137.05,137.01,14.37]
[1720766724036,14.37,137.06,137.01,14.37]
[1720766724272,10.0,137.1,137.01,14.37]
[1720766724432,14.37,137.02,136.96,21.7808]
[1720766724635,14.37,137.02,136.97,79.37]
[1720766725758,14.37,137.06,136.98,14.37]
[1720766726066,14.37,137.03,136.98,14.37]
[1720766726561,7.2945,137.09,136.97,65.0]
[1720766726867,7.2945,137.09,136.96,21.7808]
[1720766726868,28.7,137.05,136.96,21.7808]
[1720766727037,20.0,137.04,136.96,21.7808]
[1720766730450,45.0,137.03,136.92,21.6342]
[1720766730743,35.999,137.01,136.92,21.6342]
[1720766731057,20.0,137.0,136.92,21.6342]
[1720766732336,45.0,137.03,136.93,45.0]
[1720766732537,20.0,137.02,136.93,45.0]
[1720766732842,20.0,137.03,136.93,45.0]
[1720766733036,27.2977,137.03,136.94,20.0]
[1720766733233,20.0,137.03,136.94,20.0]
[1720766734762,20.0,137.03,136.93,45.0]
[1720766734937,27.2977,137.03,136.93,45.0]
[1720766737969,20.0,137.03,136.93,45.0]
[1720766738962,27.2979,137.03,136.93,45.0]
[1720766739166,7.2984,137.02,136.93,45.0]
[1720766739467,55.9979,137.03,136.92,21.6342]
[1720766739638,52.2982,137.02,136.93,20.0]
[1720766739839,20.0,137.01,136.93,20.0]
[1720766740664,20.0,137.01,136.94,1.45610701]
[1720766741875,20.0,137.01,136.93,20.0]
[1720766742046,55.9989,137.01,136.93,20.0]
[1720766742362,28.7,136.99,136.92,21.6342]
[1720766742544,20.0,136.98,136.92,21.6342]
[1720766742943,73.7,136.97,136.92,21.6342]
[1720766743161,73.7,136.97,136.92,15.1869]
[1720766745678,81.0009,136.97,136.89,21.5518]
[1720766746241,73.7,136.97,136.89,21.5518]
[1720766746470,28.7,136.95,136.86,16.1273]
[1720766746643,65.0,136.94,136.86,16.1273]
[1720766746838,72.3024,136.94,136.86,16.1273]
[1720766747763,65.0,136.94,136.86,16.1273]
[1720766748346,20.0,136.94,136.86,16.1273]
[1720766749465,20.0,136.94,136.87,0.38876854]
[1720766749847,20.0,136.94,136.87,45.38876854]
[1720766750355,20.0,136.94,136.86,16.1273]
[1720766750548,20.0,136.94,136.87,0.38865492]
[1720766750950,20.0,136.94,136.87,45.38865492]
[1720766751359,36.001,136.97,136.87,45.38865492]
[1720766751669,45.0,136.96,136.87,45.38865492]
[1720766753075,45.0,136.96,136.88,20.0]
[1720766755778,52.3015,136.96,136.88,21.46089305]
[1720766755963,45.0,136.96,136.88,21.46089305]
[1720766758672,14.37,136.93,136.88,35.83089305]
[1720766759391,45.0,136.96,136.87,15.83089305]
[1720766759392,14.37,136.92,136.87,15.83089305]
[1720766760681,14.37,136.93,136.88,14.37]
[1720766761280,14.37,136.92,136.87,15.83089305]
[1720766761777,14.37,136.93,136.88,14.37]
[1720766763286,14.37,136.92,136.87,1.46089305]
[1720766763460,14.37,136.92,136.87,35.83089305]
[1720766763794,14.37,136.91,136.87,21.46089305]
[1720766763958,14.37,136.91,136.86,16.1273]
[1720766764161,14.37,136.91,136.86,31.95829993]
[1720766765481,14.37,136.91,136.87,14.37]
[1720766768184,70.4245559,136.99,136.87,1.46046621]
[1720766768185,2.9445559,136.99,136.87,1.46046621]
[1720766768417,14.37,136.95,136.9,14.37]
[1720766768597,14.37,136.96,136.92,15.3942]
[1720766768882,34.93680877,137.0,136.91,22.00703951]
[1720766768883,14.37,136.94,136.91,6.177]
[1720766769264,14.37,136.93,136.91,6.177]
[1720766770287,14.37,136.93,136.89,15.3942]
[1720766771691,14.37,136.92,136.89,15.3942]
[1720766772179,14.37,136.93,136.89,15.3942]
[1720766775383,7.3004,136.98,136.9,1.45982654]
[1720766775588,14.37,136.95,136.9,15.82982654]
[1720766775794,14.37,136.95,136.91,14.37]
[1720766776487,14.37,136.96,136.91,15.82984455]
[1720766776992,14.37,136.96,136.92,14.37]
[1720766777489,14.37,136.96,136.91,14.37]
[1720766777877,14.37,136.95,136.9,14.37]
[1720766778479,20.0,136.97,136.9,14.37]
[1720766778682,14.37,136.94,136.9,14.37]
[1720766778887,14.37,136.94,136.89,29.7642]
[1720766779776,14.37,136.93,136.89,15.3942]
[1720766780767,14.37,136.92,136.89,15.3942]
[1720766784496,14.37,136.93,136.89,15.3942]
[1720766789815,14.37,136.94,136.89,29.7642]
[1720766790409,14.37,136.92,136.89,15.3942]
[1720766790609,14.37,136.9,136.86,16.4283]
[1720766790810,14.37,136.89,136.86,16.4283]
[1720766791310,21.6738,136.92,136.83,15.1693]
[1720766791528,14.37,136.86,136.83,15.1693]
[1720766791825,14.37,136.87,136.83,29.5393]
[1720766792416,20.0,136.91,136.83,29.5393]
[1720766792612,14.37,136.88,136.83,29.5393]
[1720766792926,14.37,136.88,136.83,15.1693]